fUST/lending_fUST_20250628
["ID","MTS","AMOUNT","RATE_DAILY","PERIOD"]
[368176858,1751050249676,-723.05869188,0.00020325,2]
[368176859,1751050249686,-500.0,0.00020329,2]
[368176860,1751050249696,-1000.0,0.00020329,2]
[368176861,1751050249706,-501.23205749,0.00020329,2]
[368176862,1751050249715,-1000.0,0.00020329,2]
[368176863,1751050249726,-524.02133491,0.00020329,2]
[368176864,1751050249736,-1000.0,0.00020356,2]
[368176865,1751050249747,-1000.0,0.00020356,2]
[368176866,1751050249757,-502.29752276,0.00020356,2]
[368176867,1751050249767,-1000.0,0.00020362,2]
[368176868,1751050249777,-788.09348078,0.00020362,2]
[368176869,1751050249787,-1000.0,0.00020362,2]
[368176870,1751050249797,-151.0,0.00020362,2]
[368176871,1751050249807,-500.0,0.00020374,2]
[368176872,1751050249817,-1000.0,0.00020374,2]
[368176873,1751050249828,-1000.0,0.00020374,2]
[368176874,1751050249837,-2265.16640447,0.00020379,2]
[368176875,1751050249846,-1000.0,0.00020381,2]
[368176876,1751050249856,-201.66384461,0.000204,2]
[368176877,1751050249866,-151.0,0.000204,4]
[368176878,1751050249875,-168.0,0.00020458,2]
[368176879,1751050249884,-162882.33509562,0.000205,3]
[368176880,1751050249894,-151.0,0.000205,4]
[368176881,1751050249903,-151.0,0.000205,2]
[368176882,1751050249912,-151.0,0.000205,2]
[368176883,1751050249920,-151.973634,0.000205,2]
[368176884,1751050249929,-151.0,0.000205,2]
[368176885,1751050249938,-151.0,0.000205,2]
[368176886,1751050249948,-151.0,0.000205,2]
[368176887,1751050249958,-403.343617,0.000205,2]
[368176888,1751050249967,-151.0,0.000205,2]
[368176889,1751050249976,-403.343617,0.000205,2]
[368176890,1751050249986,-151.0,0.000205,2]
[368176891,1751050249995,-254.507572,0.000205,2]
[368176892,1751050250003,-151.0,0.000205,2]
[368176893,1751050250014,-151.0,0.000205,2]
[368176894,1751050250024,-151.0,0.000205,2]
[368176895,1751050250115,-151.0,0.000205,2]
[368176896,1751050250125,-513.956997,0.000205,2]
[368176897,1751050250134,-513.956997,0.000205,2]
[368176898,1751050250146,-458.371935,0.000205,2]
[368176899,1751050250158,-458.371935,0.000205,2]
[368176900,1751050250167,-151.0,0.000205,2]
[368176901,1751050250176,-151.0,0.000205,2]
[368176902,1751050250186,-389.560953,0.000205,2]
[368176903,1751050250195,-389.560953,0.000205,2]
[368176904,1751050250204,-160.0,0.000205,3]
[368176905,1751050250214,-151.0,0.000205,2]
[368176906,1751050250224,-356.621775,0.000205,2]
[368176907,1751050250234,-356.621775,0.000205,2]
[368176908,1751050250244,-151.0,0.000205,2]
[368176909,1751050250253,-12562.41216491,0.000205,3]
[368176910,1751050250262,-337.651858,0.000205,2]
[368176911,1751050250271,-384.158523,0.000205,2]
[368176912,1751050250280,-337.651858,0.000205,2]
[368176913,1751050250290,-384.158523,0.000205,2]
[368176914,1751050250299,-847.04181546,0.000205,3]
[368176915,1751050250309,-151.0,0.000205,2]
[368176916,1751050250319,-151.0,0.000205,2]
[368176917,1751050250328,-160.0,0.000205,3]
[368176918,1751050250338,-246.156156,0.000205,2]
[368176919,1751050250348,-246.156156,0.000205,2]
[368176920,1751050250357,-151.0,0.000205,2]
[368176921,1751050250367,-181.974358,0.000205,2]
[368176922,1751050250376,-207.994089,0.000205,2]
[368176923,1751050250385,-181.974358,0.000205,2]
[368176924,1751050250394,-207.994089,0.000205,2]
[368176925,1751050250403,-5000.0,0.0002051,2]
[368176926,1751050250413,-500.0,0.0002051,2]
[368176927,1751050250422,-500.0,0.0002051,2]
[368176928,1751050250431,-500.0,0.0002051,2]
[368176929,1751050250440,-500.0,0.0002051,2]
[368176930,1751050250449,-500.0,0.0002051,2]
[368176931,1751050250459,-500.0,0.0002051,2]
[368176932,1751050250468,-500.0,0.0002051,2]
[368176933,1751050250478,-381.33984163,0.0002051,2]
[368176934,1751050250487,-207.4,0.0002051,2]
[368176935,1751050250497,-460.0,0.00020547,2]
[368176936,1751050250506,-716.03,0.00020547,2]
[368176937,1751050250516,-670.01,0.00020547,2]
[368176938,1751050250525,-460.0,0.00020547,2]
[368176939,1751050250534,-460.0,0.00020547,2]
[368176940,1751050250543,-1088.45,0.00020547,2]
[368176941,1751050250552,-460.0,0.00020547,2]
[368176942,1751050250562,-460.0,0.00020547,2]
[368176943,1751050250571,-460.0,0.00020547,2]
[368176944,1751050250580,-573.06,0.00020547,2]
[368176945,1751050250590,-460.0,0.00020547,2]
[368176946,1751050250599,-460.0,0.00020547,2]
[368176947,1751050250609,-460.0,0.00020547,2]
[368176948,1751050250619,-436.49777927,0.00020547,2]
[368176949,1751050250628,-460.0,0.00020547,2]
[368176950,1751050250639,-460.0,0.00020547,2]
[368176951,1751050250648,-460.0,0.00020547,2]
[368176952,1751050250657,-547.37753493,0.00020547,2]
[368176953,1751050250667,-778.94,0.00020547,2]
[368176954,1751050250676,-460.0,0.00020547,2]
[368176955,1751050250687,-460.0,0.00020547,2]
[368176956,1751050250697,-460.0,0.00020547,2]
[368176957,1751050250706,-460.0,0.00020547,2]
[368176958,1751050250716,-710.39,0.00020547,2]
[368176959,1751050250725,-212.42,0.00020547,2]
[368176960,1751050250734,-460.0,0.00020547,2]
[368176961,1751050250744,-602.83,0.00020547,2]
[368176962,1751050250753,-460.0,0.00020547,2]
[368176963,1751050250763,-534.5,0.00020547,2]
[368176964,1751050250773,-460.0,0.00020547,2]
[368176965,1751050250782,-460.0,0.00020547,2]
[368176966,1751050250791,-481.37,0.00020547,2]
[368176967,1751050250801,-460.0,0.00020547,2]
[368176968,1751050250811,-460.0,0.00020547,2]
[368176969,1751050250822,-460.0,0.00020547,2]
[368176970,1751050250831,-321.72102481,0.00020547,2]
[368176971,1751050250840,-460.0,0.00020547,2]
[368176972,1751050250852,-824.3,0.00020547,2]
[368176973,1751050250861,-460.0,0.00020547,2]
[368176974,1751050250872,-460.0,0.00020547,2]
[368176975,1751050250881,-460.0,0.00020547,2]
[368176976,1751050250890,-460.0,0.00020547,2]
[368176977,1751050250900,-460.0,0.00020547,2]
[368176978,1751050250910,-460.0,0.00020547,2]
[368176979,1751050250920,-460.0,0.00020547,2]
[368176980,1751050250929,-215.68,0.00020547,2]
[368176981,1751050250939,-740.46,0.00020547,2]
[368176982,1751050250948,-724.33,0.00020547,2]
[368176983,1751050250958,-500.0,0.00020547,2]
[368176984,1751050250967,-4024.15,0.00020547,2]
[368176985,1751050250976,-464.58,0.00020547,2]
[368176986,1751050250987,-4326.72,0.00020547,2]
[368176987,1751050250996,-1028.81,0.00020547,2]
[368176988,1751050251007,-273.53944573,0.00020547,2]
[368176989,1751050251016,-573.14,0.00020547,2]
[368176990,1751050251025,-460.0,0.00020547,2]
[368176991,1751050251035,-460.0,0.00020547,2]
[368176992,1751050251044,-494.06,0.00020547,2]
[368176993,1751050251054,-4640.97,0.00020547,2]
[368176994,1751050251065,-5598.36,0.00020547,2]
[368176995,1751050251077,-460.0,0.00020547,2]
[368176996,1751050251086,-805.6,0.00020547,2]
[368176997,1751050251096,-1693.4,0.00020547,2]
[368176998,1751050251105,-2041.2,0.00020547,2]
[368176999,1751050251115,-460.0,0.00020547,2]
[368177000,1751050251125,-460.0,0.00020547,2]
[368177001,1751050251134,-460.0,0.00020547,2]
[368177002,1751050251144,-460.0,0.00020547,2]
[368177003,1751050251154,-2276.45,0.00020547,2]
[368177004,1751050251164,-632.3,0.00020547,2]
[368177005,1751050251173,-563.86,0.00020547,2]
[368177006,1751050251182,-460.0,0.00020547,2]
[368177007,1751050251191,-460.0,0.00020547,2]
[368177008,1751050251200,-829.09,0.00020547,2]
[368177009,1751050251210,-1742.49,0.00020547,2]
[368177010,1751050251219,-460.0,0.00020547,2]
[368177011,1751050251229,-270.14,0.00020547,2]
[368177012,1751050251238,-460.0,0.00020547,2]
[368177013,1751050251248,-807.33,0.00020547,2]
[368177014,1751050251258,-1348.64,0.00020547,2]
[368177015,1751050251267,-598.58,0.00020547,2]
[368177016,1751050251277,-1350.56,0.00020547,2]
[368177017,1751050251286,-460.0,0.00020547,2]
[368177018,1751050251296,-460.0,0.00020547,2]
[368177019,1751050251305,-605.46870914,0.00020547,2]
[368177020,1751050251317,-460.0,0.00020547,2]
[368177021,1751050251327,-460.0,0.00020547,2]
[368177022,1751050251336,-2117.93,0.00020547,2]
[368177023,1751050251346,-488.2,0.00020547,2]
[368177024,1751050251356,-680.42,0.00020547,2]
[368177025,1751050251366,-528.67,0.00020547,2]
[368177026,1751050251376,-679.2,0.00020547,2]
[368177027,1751050251385,-779.84,0.00020547,2]
[368177028,1751050251395,-1208.44,0.00020547,2]
[368177029,1751050251404,-766.56,0.00020547,2]
[368177030,1751050251414,-958.22,0.00020547,2]
[368177031,1751050251424,-903.72,0.00020547,2]
[368177032,1751050251434,-460.0,0.00020547,2]
[368177033,1751050251444,-813.48,0.00020547,2]
[368177034,1751050251454,-598.54,0.00020547,2]
[368177035,1751050251464,-460.0,0.00020547,2]
[368177036,1751050251473,-460.0,0.00020547,2]
[368177037,1751050251483,-460.0,0.00020547,2]
[368177038,1751050251492,-2547.18,0.00020547,2]
[368177039,1751050251502,-2140.85,0.00020547,2]
[368177040,1751050251512,-913.39,0.00020547,2]
[368177041,1751050251522,-325.7,0.00020547,2]
[368177042,1751050251532,-460.0,0.00020547,2]
[368177043,1751050251541,-338.774376,0.00020547,2]
[368177044,1751050251551,-460.0,0.00020547,2]
[368177045,1751050251559,-460.0,0.00020547,2]
[368177046,1751050251571,-4096.8,0.00020547,2]
[368177047,1751050251581,-536.44,0.00020547,2]
[368177048,1751050251590,-811.54,0.00020547,2]
[368177049,1751050251601,-533.95,0.00020547,2]
[368177050,1751050251611,-6692.7,0.00020547,2]
[368177051,1751050251705,-460.0,0.00020547,2]
[368177052,1751050251717,-1124.09,0.00020547,2]
[368177053,1751050251727,-583.49,0.00020547,2]
[368177054,1751050251737,-460.0,0.00020547,2]
[368177055,1751050251746,-460.0,0.00020547,2]
[368177056,1751050251756,-460.0,0.00020547,2]
[368177057,1751050251766,-1404.72,0.00020547,2]
[368177058,1751050251776,-460.0,0.00020547,2]
[368177059,1751050251785,-1817.63,0.00020547,2]
[368177060,1751050251795,-824.96,0.00020547,2]
[368177061,1751050251804,-460.0,0.00020547,2]
[368177062,1751050251817,-588.73,0.00020547,2]
[368177063,1751050251827,-460.0,0.00020547,2]
[368177064,1751050251837,-3832.44,0.00020547,2]
[368177065,1751050251846,-2265.16640447,0.00020721,2]
[368177066,1751050251855,-151.0,0.000208,4]
[368177067,1751050251865,-460.0,0.00020821,2]
[368177068,1751050251874,-716.03,0.00020821,2]
[368177069,1751050251883,-670.01,0.00020821,2]
[368177070,1751050251893,-460.0,0.00020821,2]
[368177071,1751050251902,-460.0,0.00020821,2]
[368177072,1751050251911,-1088.45,0.00020821,2]
[368177073,1751050251921,-460.0,0.00020821,2]
[368177074,1751050251930,-460.0,0.00020821,2]
[368177075,1751050251939,-460.0,0.00020821,2]
[368177076,1751050251949,-512.51,0.00020821,2]
[368177077,1751050251958,-460.0,0.00020821,2]
[368177078,1751050251967,-460.0,0.00020821,2]
[368177079,1751050251977,-460.0,0.00020821,2]
[368177080,1751050251986,-420.74,0.00020821,2]
[368177081,1751050251995,-151.0,0.00020821,2]
[368177082,1751050252005,-778.94,0.00020821,2]
[368177083,1751050252015,-151.0,0.00020821,2]
[368177084,1751050252024,-484.1565505,0.00020821,2]
[368177085,1751050252034,-513.84,0.00020821,2]
[368177086,1751050252044,-403.343617,0.00020821,2]
[368177087,1751050252053,-287.422844,0.00020821,2]
[368177088,1751050252066,-403.343617,0.00020821,2]
[368177089,1751050252078,-460.0,0.00020821,2]
[368177090,1751050252088,-151.0,0.00020821,2]
[368177091,1751050252097,-710.39,0.00020821,2]
[368177092,1751050252108,-460.0,0.00020821,2]
[368177093,1751050252118,-602.83,0.00020821,2]
[368177094,1751050252127,-151.0,0.00020821,2]
[368177095,1751050252136,-286.14420144,0.00020821,2]
[368177096,1751050252275,-173.85579856,0.00020821,2]
[368177097,1751050252285,-151.0,0.00020821,2]
[368177098,1751050252294,-151.0,0.00020821,2]
[368177099,1751050252304,-460.0,0.00020821,2]
[368177100,1751050252315,-460.0,0.00020821,2]
[368177101,1751050252325,-458.371935,0.00020821,2]
[368177102,1751050252334,-481.37,0.00020821,2]
[368177103,1751050252344,-458.371935,0.00020821,2]
[368177104,1751050252353,-151.0,0.00020821,2]
[368177105,1751050252363,-460.0,0.00020821,2]
[368177106,1751050252372,-460.0,0.00020821,2]
[368177107,1751050252382,-503.54,0.00020821,2]
[368177108,1751050252391,-389.560953,0.00020821,2]
[368177109,1751050252401,-389.560953,0.00020821,2]
[368177110,1751050252411,-460.0,0.00020821,2]
[368177111,1751050252421,-824.3,0.00020821,2]
[368177112,1751050252431,-460.0,0.00020821,2]
[368177113,1751050252441,-770.795,0.00020821,2]
[368177114,1751050252451,-460.0,0.00020821,2]
[368177115,1751050252461,-460.0,0.00020821,2]
[368177116,1751050252471,-460.0,0.00020821,2]
[368177117,1751050252480,-584.8,0.00020821,2]
[368177118,1751050252490,-151.0,0.00020821,2]
[368177119,1751050252499,-356.621775,0.00020821,2]
[368177120,1751050252509,-740.46,0.00020821,2]
[368177121,1751050252519,-356.621775,0.00020821,2]
[368177122,1751050252528,-724.33,0.00020821,2]
[368177123,1751050252538,-4024.15,0.00020821,2]
[368177124,1751050252547,-464.58,0.00020821,2]
[368177125,1751050252557,-4326.72,0.00020821,2]
[368177126,1751050252567,-1028.81,0.00020821,2]
[368177127,1751050252577,-573.14,0.00020821,2]
[368177128,1751050252586,-151.0,0.00020821,2]
[368177129,1751050252596,-460.0,0.00020821,2]
[368177130,1751050252605,-494.06,0.00020821,2]
[368177131,1751050252615,-337.651858,0.00020821,2]
[368177132,1751050252625,-4640.97,0.00020821,2]
[368177133,1751050252635,-384.158523,0.00020821,2]
[368177134,1751050252645,-337.651858,0.00020821,2]
[368177135,1751050252654,-384.158523,0.00020821,2]
[368177136,1751050252663,-5598.36,0.00020821,2]
[368177137,1751050252674,-460.0,0.00020821,2]
[368177138,1751050252686,-805.6,0.00020821,2]
[368177139,1751050252695,-1693.4,0.00020821,2]
[368177140,1751050252705,-2041.2,0.00020821,2]
[368177141,1751050252715,-460.0,0.00020821,2]
[368177142,1751050252725,-460.0,0.00020821,2]
[368177143,1751050252735,-460.0,0.00020821,2]
[368177144,1751050252745,-2276.45,0.00020821,2]
[368177145,1751050252755,-151.0,0.00020821,2]
[368177146,1751050252765,-632.3,0.00020821,2]
[368177147,1751050252776,-563.86,0.00020821,2]
[368177148,1751050252787,-503.16,0.00020821,2]
[368177149,1751050252798,-829.09,0.00020821,2]
[368177150,1751050252808,-1742.49,0.00020821,2]
[368177151,1751050252820,-460.0,0.00020821,2]
[368177152,1751050252831,-460.0,0.00020821,2]
[368177153,1751050252842,-807.33,0.00020821,2]
[368177154,1751050252852,-1348.64,0.00020821,2]
[368177155,1751050252863,-151.0,0.00020821,2]
[368177156,1751050252873,-1350.56,0.00020821,2]
[368177157,1751050252883,-460.0,0.00020821,2]
[368177158,1751050252893,-460.0,0.00020821,2]
[368177159,1751050252903,-460.0,0.00020821,2]
[368177160,1751050252913,-460.0,0.00020821,2]
[368177161,1751050252923,-2117.93,0.00020821,2]
[368177162,1751050252932,-488.2,0.00020821,2]
[368177163,1751050252941,-680.42,0.00020821,2]
[368177164,1751050252951,-528.67,0.00020821,2]
[368177165,1751050252961,-679.2,0.00020821,2]
[368177166,1751050252970,-779.84,0.00020821,2]
[368177167,1751050253068,-1208.44,0.00020821,2]
[368177168,1751050253079,-766.56,0.00020821,2]
[368177169,1751050253090,-958.22,0.00020821,2]
[368177170,1751050253100,-903.72,0.00020821,2]
[368177171,1751050253109,-460.0,0.00020821,2]
[368177172,1751050253119,-813.48,0.00020821,2]
[368177173,1751050253128,-598.54,0.00020821,2]
[368177174,1751050253138,-460.0,0.00020821,2]
[368177175,1751050253147,-246.156156,0.00020821,2]
[368177176,1751050253157,-460.0,0.00020821,2]
[368177177,1751050253167,-246.156156,0.00020821,2]
[368177178,1751050253176,-460.0,0.00020821,2]
[368177179,1751050253186,-2547.18,0.00020821,2]
[368177180,1751050253196,-2140.85,0.00020821,2]
[368177181,1751050253205,-913.39,0.00020821,2]
[368177182,1751050253215,-460.0,0.00020821,2]
[368177183,1751050253225,-460.0,0.00020821,2]
[368177184,1751050253234,-4096.8,0.00020821,2]
[368177185,1751050253245,-536.44,0.00020821,2]
[368177186,1751050253254,-256.1517647,0.00020821,2]
[368177187,1751050253275,-474.20693059,0.00020821,2]
[368177188,1751050253287,-81.18130471,0.00020821,2]
[368177189,1751050253296,-533.95,0.00020821,2]
[368177190,1751050253306,-4785.31419464,0.00020821,2]
[368177191,1751050253322,-1907.38580536,0.00020821,2]
[368177192,1751050253331,-460.0,0.00020821,2]
[368177193,1751050253341,-1124.09,0.00020821,2]
[368177194,1751050253350,-583.49,0.00020821,2]
[368177195,1751050253360,-460.0,0.00020821,2]
[368177196,1751050253370,-181.974358,0.00020821,2]
[368177197,1751050253379,-460.0,0.00020821,2]
[368177198,1751050253389,-460.0,0.00020821,2]
[368177199,1751050253405,-1404.72,0.00020821,2]
[368177200,1751050253419,-207.994089,0.00020821,2]
[368177201,1751050253429,-181.974358,0.00020821,2]
[368177202,1751050253440,-460.0,0.00020821,2]
[368177203,1751050253450,-207.994089,0.00020821,2]
[368177204,1751050253461,-1817.63,0.00020821,2]
[368177205,1751050253471,-824.96,0.00020821,2]
[368177206,1751050253481,-460.0,0.00020821,2]
[368177207,1751050253491,-588.73,0.00020821,2]
[368177208,1751050253501,-460.0,0.00020821,2]
[368177209,1751050253510,-3832.44,0.00020821,2]
[368177210,1751050253520,-1500.0,0.00020839,2]
[368177211,1751050253530,-1602.7981794,0.00020859,2]
[368177212,1751050253540,-1500.0,0.00020859,2]
[368177213,1751050253550,-1000.0,0.00020859,2]
[368177214,1751050253560,-538.25510388,0.00020862,2]
[368177215,1751050253571,-1000.0,0.00020862,2]
[368177216,1751050253581,-420.83765646,0.00020873,2]
[368177217,1751050253591,-1500.0,0.00020877,2]
[368177218,1751050253601,-730.0,0.00020881,2]
[368177219,1751050253612,-7881.85932945,0.000209,4]
[368177220,1751050253622,-1500.0,0.00020904,2]
[368177221,1751050253632,-483.08343318,0.00020904,2]
[368177222,1751050253642,-449.92250371,0.0002091,2]
[368177223,1751050253651,-1500.0,0.00020922,2]
[368177224,1751050253661,-1000.0,0.00020922,2]
[368177225,1751050253672,-1000.0,0.00020928,2]
[368177226,1751050253682,-259.447976,0.00020934,2]
[368177227,1751050253693,-259.447976,0.00020934,2]
[368177228,1751050253703,-151.0,0.00020941,2]
[368177229,1751050253713,-151.0,0.00020941,2]
[368177230,1751050253723,-151.0,0.00020941,2]
[368177231,1751050253733,-151.0,0.00020941,2]
[368177232,1751050253743,-151.0,0.00020941,2]
[368177233,1751050253761,-151.0,0.00020941,2]
[368177234,1751050253784,-151.0,0.00020941,2]
[368177235,1751050253803,-178.774334,0.00020941,2]
[368177236,1751050253824,-254.507572,0.00020941,2]
[368177237,1751050253842,-151.000002,0.00020941,2]
[368177238,1751050253862,-513.956997,0.00020941,2]
[368177239,1751050253879,-513.956997,0.00020941,2]
[368177240,1751050253900,-1226.700155,0.00020941,4]
[368177241,1751050253919,-151.0,0.00020959,2]
[368177242,1751050253933,-151.0,0.00020959,2]
[368177243,1751050253948,-151.0,0.00020959,2]
[368177244,1751050253963,-151.0,0.00020959,2]
[368177245,1751050253982,-151.0,0.00020959,2]
[368177246,1751050254004,-151.0,0.00020959,2]
[368177247,1751050254018,-1242.453812,0.00020959,2]
[368177248,1751050254030,-1242.453812,0.00020959,2]
[368177249,1751050254048,-217.897719,0.00020959,2]
[368177250,1751050254063,-217.897719,0.00020959,2]
[368177251,1751050254083,-151.882799,0.00020959,2]
[368177252,1751050254097,-151.598614,0.00020959,2]
[368177253,1751050254112,-242.6,0.0002099,4]
[368177254,1751050254133,-151.0,0.00021,3]
[368177255,1751050254150,-1733.254274,0.00021,2]
[368177256,1751050254167,-160.844011,0.00021,3]
[368177257,1751050254182,-695.24141852,0.00021038,2]
[368177258,1751050254197,-318.4789722,0.00021041,2]
[368177259,1751050254212,-5000.0,0.00021058,2]
[368177260,1751050254226,-168.0,0.00021091,2]
[368177261,1751050254240,-151.0,0.00021095,2]
[368177262,1751050254255,-177.914021,0.00021095,2]
[368177263,1751050254267,-260.03891,0.00021095,2]
[368177264,1751050254281,-151.0,0.00021095,2]
[368177265,1751050254295,-260.03891,0.00021095,2]
[368177266,1751050254309,-529.37773014,0.00021095,2]
[368177267,1751050254325,-716.03,0.00021095,2]
[368177268,1751050254338,-670.01,0.00021095,2]
[368177269,1751050254353,-460.0,0.00021095,2]
[368177270,1751050254366,-460.0,0.00021095,2]
[368177271,1751050254376,-1088.45,0.00021095,2]
[368177272,1751050254385,-460.0,0.00021095,2]
[368177273,1751050254394,-460.0,0.00021095,2]
[368177274,1751050254405,-460.0,0.00021095,2]
[368177275,1751050254415,-460.0,0.00021095,2]
[368177276,1751050254424,-778.94,0.00021095,2]
[368177277,1751050254434,-460.0,0.00021095,2]
[368177278,1751050254444,-710.39,0.00021095,2]
[368177279,1751050254453,-460.0,0.00021095,2]
[368177280,1751050254463,-602.83,0.00021095,2]
[368177281,1751050254473,-460.0,0.00021095,2]
[368177282,1751050254482,-460.0,0.00021095,2]
[368177283,1751050254492,-460.0,0.00021095,2]
[368177284,1751050254502,-481.37,0.00021095,2]
[368177285,1751050254511,-460.0,0.00021095,2]
[368177286,1751050254523,-293.57729921,0.00021095,2]
[368177287,1751050254532,-460.0,0.00021095,2]
[368177288,1751050254542,-824.3,0.00021095,2]
[368177289,1751050254551,-460.0,0.00021095,2]
[368177290,1751050254561,-460.0,0.00021095,2]
[368177291,1751050254571,-460.0,0.00021095,2]
[368177292,1751050254581,-151.0,0.00021095,2]
[368177293,1751050254591,-740.46,0.00021095,2]
[368177294,1751050254600,-724.33,0.00021095,2]
[368177295,1751050254610,-4024.15,0.00021095,2]
[368177296,1751050254620,-464.58,0.00021095,2]
[368177297,1751050254630,-4326.72,0.00021095,2]
[368177298,1751050254640,-1028.81,0.00021095,2]
[368177299,1751050254877,-573.14,0.00021095,2]
[368177300,1751050254890,-151.0,0.00021095,2]
[368177301,1751050254900,-460.0,0.00021095,2]
[368177302,1751050254910,-494.06,0.00021095,2]
[368177303,1751050254919,-4640.97,0.00021095,2]
[368177304,1751050254929,-384.158523,0.00021095,2]
[368177305,1751050254939,-384.158523,0.00021095,2]
[368177306,1751050254948,-5598.36,0.00021095,2]
[368177307,1751050254958,-460.0,0.00021095,2]
[368177308,1751050254967,-59.64641576,0.00021095,2]
[368177309,1751050254980,-299.88738122,0.00021095,2]
[368177310,1751050255000,-4872.39,0.00020547,2]
[368177311,1751050255009,-446.06620302,0.00021095,2]
[368177312,1751050255019,-1693.4,0.00021095,2]
[368177313,1751050255029,-2041.2,0.00021095,2]
[368177314,1751050255039,-460.0,0.00021095,2]
[368177315,1751050255048,-460.0,0.00021095,2]
[368177316,1751050255057,-226.37,0.00021095,2]
[368177317,1751050255073,-2276.45,0.00021095,2]
[368177318,1751050255083,-151.0,0.00021095,2]
[368177319,1751050255093,-632.3,0.00021095,2]
[368177320,1751050255102,-563.86,0.00021095,2]
[368177321,1751050255113,-829.09,0.00021095,2]
[368177322,1751050255123,-1742.49,0.00021095,2]
[368177323,1751050255133,-399.63,0.00021095,2]
[368177324,1751050255143,-460.0,0.00021095,2]
[368177325,1751050255154,-807.33,0.00021095,2]
[368177326,1751050255164,-1348.64,0.00021095,2]
[368177327,1751050255175,-1350.56,0.00021095,2]
[368177328,1751050255184,-460.0,0.00021095,2]
[368177329,1751050255195,-460.0,0.00021095,2]
[368177330,1751050255205,-460.0,0.00021095,2]
[368177331,1751050255214,-386.66,0.00021095,2]
[368177332,1751050255223,-2117.93,0.00021095,2]
[368177333,1751050255233,-488.2,0.00021095,2]
[368177334,1751050255251,-680.42,0.00021095,2]
[368177335,1751050255265,-528.67,0.00021095,2]
[368177336,1751050255276,-679.2,0.00021095,2]
[368177337,1751050255286,-779.84,0.00021095,2]
[368177338,1751050255297,-1208.44,0.00021095,2]
[368177339,1751050255307,-766.56,0.00021095,2]
[368177340,1751050255324,-958.22,0.00021095,2]
[368177341,1751050255335,-903.72,0.00021095,2]
[368177342,1751050255345,-460.0,0.00021095,2]
[368177343,1751050255355,-813.48,0.00021095,2]
[368177344,1751050255365,-598.54,0.00021095,2]
[368177345,1751050255376,-460.0,0.00021095,2]
[368177346,1751050255386,-246.156156,0.00021095,2]
[368177347,1751050255397,-460.0,0.00021095,2]
[368177348,1751050255407,-246.156156,0.00021095,2]
[368177349,1751050255418,-343.78,0.00021095,2]
[368177350,1751050255429,-2547.18,0.00021095,2]
[368177351,1751050255439,-2140.85,0.00021095,2]
[368177352,1751050255449,-913.39,0.00021095,2]
[368177353,1751050255460,-460.0,0.00021095,2]
[368177354,1751050255470,-460.0,0.00021095,2]
[368177355,1751050255480,-4096.8,0.00021095,2]
[368177356,1751050255490,-536.44,0.00021095,2]
[368177357,1751050255501,-811.54,0.00021095,2]